Cogmind - Beta 9.4 @@@ ROGUE MODE // 2020.03.03 @ 21:04:50 Player: timonkot131 Result: Destroyed by G-47 Trooper with Particle Gun Performance ------------- Evolutions (2) 1000 Regions Visited (3) 600 Robots Destroyed (40) 200 Value Destroyed (715) 715 Prototype IDs (1) 20 Alien Tech Used (0) 0 Bonus (0) 0 TOTAL SCORE: 2535 Bonus ------- None Cogmind --------- Core Integrity 0/550 Matter 178/300 Energy 95/100 System Corruption 0% Temperature Cool (9) Movement Treading (180) Ox1 Location -8/Materials Parts ------- > --- POWER (2) -------- (None) > --- PROPULSION (3) --- Light Treads > --- UTILITY (4) ------ Medium Storage Unit Large Storage Unit Large Storage Unit > --- WEAPON (2) ------- (None) > --- INVENTORY (20) --- Light Ion Engine Improved Aluminum Leg Large Matter Pod (78) Improved Terrain Scanner Salvage Targeting Computer Peak State ------------ > --- POWER ------------ Light Ion Engine Improved Ion Engine > --- PROPULSION ------- Aluminum Leg Wheel Compact Wheel > --- UTILITY ---------- Medium Storage Unit Large Storage Unit Large Storage Unit > --- WEAPON ----------- Heavy Assault Rifle Katana > --- INVENTORY -------- Light Ion Engine Light Ion Engine Light Treads Aluminum Leg Aluminum Leg Large Matter Pod Improved Terrain Scanner Salvage Targeting Computer Small Laser Light EM Pulse Cannon Assault Rifle [Rating: 15] Favorites ----------- Power Light Ion Engine Engine Light Ion Engine Propulsion Light Treads Treads Light Treads Leg Aluminum Leg Wheel Wheel Utility Large Storage Unit Device ECM Suite Storage Large Storage Unit Protection Light Armor Plating Weapon Assault Rifle Energy Gun Small Laser Energy Cannon Beam Cannon Ballistic Gun Assault Rifle Ballistic Cannon Light Cannon Slashing Weapon Katana Build | -11 -10 -9 -8 ------- Run | Scr Mat Mat Mat Slots Evolved 4 | . . 2 2 Power 1 | . . . 1 Propulsion 1 | . . . 1 Utility 2 | . . 2 . Weapon . | . . . . Parts Attached 55 | 6 3 31 15 Power 9 | 1 . 5 3 Engine 9 | 1 . 5 3 Core . | . . . . Reactor . | . . . . Propulsion 14 | 2 . 7 5 Treads 4 | 2 . 1 1 Leg 4 | . . 1 3 Wheel 6 | . . 5 1 Hover . | . . . . Flight . | . . . . Utility 8 | 1 3 4 . Device 2 | . 1 1 . Storage 4 | 1 2 1 . Processor . | . . . . Hackware . | . . . . Protection 2 | . . 2 . Artifact . | . . . . Weapon 24 | 2 . 15 7 Energy Gun 4 | 1 . 2 1 Energy Cannon 7 | . . 6 1 Ballistic Gun 9 | 1 . 6 2 Ballistic Cannon 1 | . . . 1 Launcher . | . . . . Special Weapon . | . . . . Impact Weapon . | . . . . Slashing Weapon 3 | . . 1 2 Piercing Weapon . | . . . . Special Melee Weapon . | . . . . Unidentified Prototypes 1 | . . 1 . Parts Lost 34 | . . 19 15 Power 7 | . . 4 3 Propulsion 12 | . . 6 6 Utility 3 | . . 2 1 Weapon 12 | . . 7 5 Highest Loss Streak 14 | . . 7 14 Average Slot Usage (%) 88 | . 93 93 61 Engine 10 | . 14 10 9 Treads 13 | . 28 13 . Leg 2 | . . 1 5 Wheel 5 | . . 5 9 Device 2 | . 1 2 2 Storage 30 | . 20 33 27 Protection 3 | . . 5 . Energy Gun 4 | . 14 3 1 Energy Cannon 4 | . . 6 . Ballistic Gun 10 | . 14 10 3 Naked Turns . | . . . . Heaviest Build 58 | 10 38 58 56 Greatest Support 40 | 40 40 40 30 Greatest Overweight (x) 13 | . . 5 13 Average Overweight (x) 1 | . . 1 2 Largest Inventory Capacity 20 | 6 16 20 20 Average Capacity 18 | 5 10 20 20 Most Carried 20 | 6 13 20 13 Average Carried 13 | 3 7 16 8 Final Capacity 20 | 6 16 20 20 Final Carried 13 | 6 13 12 5 Class Distribution -------------------- 80% | Hauler-Mutant 17% | Mutant Dominant Class ---------------- Mutant | -10/Materials Hauler-Mutant | -9/Materials Hauler-Mutant | -8/Materials Resources | -11 -10 -9 -8 ----------- Run | Scr Mat Mat Mat Matter Collected 886 | 224 75 575 12 Remotely . | . . . . Salvage Created 1013 | . 166 732 115 Parts 87 | . 15 66 6 Haulers Intercepted 2 | . . 2 . Recyclers Shooed . | . . . . Parts Field Recycled . | . . . . Retrieved Matter . | . . . . Parts Self-Destructed . | . . . . Prevented . | . . . . Kills | -11 -10 -9 -8 ------- Run | Scr Mat Mat Mat Combat Hostiles Destroyed 36 | . 5 27 4 Guns 29 | . 5 21 3 Cannons 7 | . . 6 1 Classes Destroyed 6 | . 2 4 . Worker 2 | . . 2 . Hauler 2 | . . 2 . Swarmer 24 | . 2 20 2 Grunt 8 | . 3 4 1 Duelist 2 | . . 1 1 Sentry 2 | . . 2 . Best Kill Streak 6 | . 3 6 2 Combat Bots Only 6 | . 3 6 2 Max Kills in Single Turn 2 | . 1 2 1 Gunslinging . | . . . . Exploded . | . . . . Melee . | . . . . Uniques/NPCs Destroyed . | . . . . Combat | -11 -10 -9 -8 -------- Run | Scr Mat Mat Mat Damage Taken 4050 | . 188 2152 1710 Core 883 | . 64 263 556 Absorbed by Shields . | . . . . Core Remaining (%) 69 | 100 74 34 . Volleys Fired 116 | . 12 92 12 Largest 2 | . 2 2 2 Hottest 112 | . 60 112 96 Shots Fired 223 | . 24 177 22 Gun 181 | . 24 141 16 Cannon 42 | . . 36 6 Launcher . | . . . . Special . | . . . . Kinetic 135 | . 12 108 15 Thermal 66 | . 12 48 6 Explosive . | . . . . Electromagnetic 22 | . . 21 1 Robot Hit Streak 13 | . 10 13 4 Robot Miss Streak 5 | . 1 5 3 Penetration Max . | . . . . Secondary Targets 2 | . . 2 . Max Gunslinging Chain 1 | . . 1 . Shots Hit Robots 142 | . 18 112 12 Core Hits 55 | . 8 39 8 Critical Hits 2 | . . 1 1 Critical Kills 1 | . . 1 . Critical Parts Destroyed 1 | . . . 1 Melee Attacks 6 | . . 1 5 Impact . | . . . . Slashing 6 | . . 1 5 Piercing . | . . . . Sneak Attacks . | . . . . Combat Hostiles . | . . . . Follow-up Attacks . | . . . . Damage Inflicted 2067 | . 184 1673 210 Guns 1435 | . 184 1139 112 Cannons 593 | . . 522 71 Explosions . | . . . . Melee . | . . . . Ramming 39 | . . 12 27 Kinetic 1007 | . 85 749 173 Thermal 727 | . 99 618 10 Explosive . | . . . . Electromagnetic 294 | . . 294 . Impact . | . . . . Slashing . | . . . . Piercing . | . . . . Highest Corruption . | . . . . Average Corruption . | . . . . Corruption Purged . | . . . . Overload Shots . | . . . . Overflow Damage . | . . . . Projectiles . | . . . . Explosions . | . . . . Melee . | . . . . Knockbacks 2 | . . . 2 Impact . | . . . . Kinetic 2 | . . . 2 Secondary . | . . . . Self-Inflicted Damage 17 | . . 5 12 Shots . | . . . . Rammed 8 | . . 3 5 Targets Rammed 8 | . . 3 5 Kicked . | . . . . Crushed . | . . . . Highest Temperature 124 | . 48 124 45 Average Temperature 32 | . 23 35 11 Received Heat Transfer 642 | . 78 267 297 Siege Activations . | . . . . Robots Corrupted 1 | . . 1 . Combat Hostiles . | . . . . Parts Fried 1 | . . 1 . Impact Corruptions . | . . . . Robots Melted . | . . . . Combat Hostiles . | . . . . Parts Melted 3 | . . 3 . Heat Transferred 1582 | . 225 1332 25 Parts Sabotaged . | . . . . Parts Stolen . | . . . . Parts Stripped . | . . . . Power Chain Reactions . | . . . . Missiles Intercepted . | . . . . Alert | -11 -10 -9 -8 ------- Run | Scr Mat Mat Mat Peak Influence 312 | . 151 312 126 Average Influence 100 | . 65 120 78 Maximum Alert Level 1 | . . 1 . Low Security (%) 87 | 100 100 80 100 Level 1 12 | . . 19 . Level 2 . | . . . . Level 3 . | . . . . Level 4 . | . . . . Level 5 . | . . . . High Security . | . . . . Max Security . | . . . . Squads Dispatched 3 | . 1 2 . Investigation 2 | . . 2 . Extermination . | . . . . Reinforcement 1 | . 1 . . Assault . | . . . . Garrison . | . . . . Intercept . | . . . . Construction Impeded . | . . . . Haulers Reinforced . | . . . . Stealth | -11 -10 -9 -8 --------- Run | Scr Mat Mat Mat Distress Signals 4 | . . 2 2 Communications Jammed . | . . . . Distress Signals . | . . . . Times Spotted 77 | . 8 52 17 Peak Tracking Total 11 | . 4 11 9 Tactical Retreats 14 | . 1 11 2 Traps | -11 -10 -9 -8 ------- Run | Scr Mat Mat Mat Traps Triggered 1 | . . 1 . Indirectly . | . . . . Trap Hack Attempts . | . . . . Triggered . | . . . . Disarmed . | . . . . Reprogrammed . | . . . . Reused . | . . . . Traps Extracted . | . . . . Installed . | . . . . Triggered . | . . . . Machines | -11 -10 -9 -8 ---------- Run | Scr Mat Mat Mat Machines Disabled . | . . . . Max in Single Turn . | . . . . Machines Sabotaged . | . . . . Garrisons Compromised . | . . . . Overloaded Fab Kills . | . . . . Fab Network Shutdowns . | . . . . Hacking | -11 -10 -9 -8 --------- Run | Scr Mat Mat Mat Machines Accessed 7 | . 1 5 1 Terminals 6 | . 1 5 . Fabricators . | . . . . Repair Stations 1 | . . . 1 Recycling Units . | . . . . Scanalyzers . | . . . . Garrison Access . | . . . . Total Hacks 15 | . 4 9 2 Successful 11 | . 4 5 2 Failed 4 | . . 4 . Catastrophic . | . . . . Database Lockouts . | . . . . Manual . | . . . . Terminals 13 | . 4 9 . Fabricators . | . . . . Repair Stations 2 | . . . 2 Recycling Units . | . . . . Scanalyzers . | . . . . Garrison Access . | . . . . Terminal Hacks 9 | . 4 5 . Record 3 | . 2 1 . Branch Access Points 1 | . 1 . . Alert Level 1 | . 1 . . Unreport Threat 1 | . . 1 . Locate Traps 1 | . . 1 . Transport Status 1 | . . 1 . Assault Status 1 | . . 1 . Fabricator Hacks . | . . . . Repair Station Hacks 2 | . . . 2 Scan Component 1 | . . . 1 Repair 1 | . . . 1 Recycling Unit Hacks . | . . . . Scanalyzer . | . . . . Garrison Access Hacks . | . . . . Unauthorized Hacks . | . . . . Terminals . | . . . . Fabricators . | . . . . Repair Stations . | . . . . Recycling Units . | . . . . Scanalyzers . | . . . . Garrison Access . | . . . . Data Cores Recovered . | . . . . Used . | . . . . Hacking Detections 4 | . . 4 . Full Trace Events . | . . . . Feedback Events . | . . . . Feedback Blocked . | . . . . Robot Schematics Acquired . | . . . . Robots Built . | . . . . Matter . | . . . . Time . | . . . . Total Robot Build Rating . | . . . . Part Schematics Acquired . | . . . . Parts Built . | . . . . Matter . | . . . . Time . | . . . . Total Part Build Rating . | . . . . Parts Repaired 1 | . . . 1 Time 26 | . . . 26 Parts Recycled . | . . . . Recycled Matter . | . . . . Retrieved Matter . | . . . . Retrieved Components . | . . . . Parts Scanalyzed . | . . . . Part Schematics Acquired . | . . . . Parts Damaged . | . . . . Bothacking | -11 -10 -9 -8 ------------ Run | Scr Mat Mat Mat Used RIF Installer . | . . . . Robots Hacked . | . . . . Non-combat . | . . . . Combat . | . . . . Robot Hacks Applied . | . . . . Relay Couplers Released . | . . . . Robots Rewired . | . . . . Allies Hacked . | . . . . Hacks Repelled . | . . . . Allies | -11 -10 -9 -8 -------- Run | Scr Mat Mat Mat Total Allies . | . . . . Largest Group . | . . . . Highest-Rated Group . | . . . . Highest-Rated Ally . | . . . . Total Orders . | . . . . Ally Attacks . | . . . . Total Damage . | . . . . Kills . | . . . . Allies Corrupted . | . . . . Allies Melted . | . . . . Intel | -11 -10 -9 -8 ------- Run | Scr Mat Mat Mat Robot Analysis Total . | . . . . Derelict Logs Recovered . | . . . . Drone Launches . | . . . . Drone Recoveries . | . . . . Exploration | -11 -10 -9 -8 ------------- Run | Scr Mat Mat Mat Turns Passed 2061 | 115 251 1367 328 Spaces Moved 811 | 69 120 466 156 Core 10 | 8 . . 2 Treads 407 | 61 120 226 . Legs 91 | . . 46 45 Wheels 303 | . . 194 109 Hover . | . . . . Flight . | . . . . Fastest Speed 50 | 50 160 100 100 Average Speed 155 | 147 160 159 142 Slowest Speed 700 | 160 160 240 700 Overloaded Moves . | . . . . Propulsion Burnouts . | . . . . Robots Hopped . | . . . . Cave-ins Triggered . | . . . . Exploration Rate (%) 22 | 5 19 44 21 Regions Visited 3 Branch Regions . Pre-discovered Areas . | . . . . Known Exits Taken . | . . . . Unknown Exits Taken 3 | 1 1 1 . Scrap Searched . | . . . . Spaces Dug 4 | . . 1 3 Terrain Destroyed 4 | . . 1 3 Melee 4 | . . 1 3 Projectile . | . . . . AOE . | . . . . Actions | -11 -10 -9 -8 --------- Run | Scr Mat Mat Mat Total 1373 | 80 155 909 229 Wait 335 | . 13 291 31 Move 808 | 68 119 465 156 Hop . | . . . . Pick Up 40 | 6 7 22 5 Fast Attach 9 | 6 1 2 . Attach 31 | . . 20 11 Detach . | . . . . Swap 15 | . 2 9 4 Drop 5 | . 1 4 . Fire 116 | . 12 92 12 Melee 6 | . . 1 5 Ram 3 | . . 2 1 Kick 2 | . . . 2 Crush 3 | . . 1 2 Escape Stasis . | . . . . Rewire . | . . . . Trap . | . . . . Miscellaneous . | . . . . Route ------- -11/Scrapyard -10/Materials (discovered 3 exits: *Mat / Min x2) -9/Materials -8/Materials History --------- Turn | Location | Event 63 | -11/Scrapyard | Discovered new exit (range 15) 116 | -11/Scrapyard | Entered Materials 302 | -10/Materials | Identified exit to Mines 311 | -10/Materials | Build established: Mutant 326 | -10/Materials | Discovered new exit (range 6) 367 | -10/Materials | Entered another Materials area 367 | -9/Materials | Evolved 2 slots: Utility x2 653 | -9/Materials | Build established: Hauler-Mutant 1188 | -9/Materials | Lost 3 parts (1n1u1w) 1474 | -9/Materials | Core integrity fell below 50% 1498 | -9/Materials | Lost 3 parts (2n1w) 1552 | -9/Materials | Lost 7 parts (2p2n3w) 1725 | -9/Materials | Discovered new exit (range 6) 1734 | -9/Materials | Entered another Materials area 1734 | -8/Materials | Evolved 2 slots: Power x1, Propulsion x1 1792 | -8/Materials | Repaired Lgt. Treads 1961 | -8/Materials | Core integrity fell below 50% 1988 | -8/Materials | Lost 14 parts (3p5n1u5w) 2038 | -8/Materials | Core integrity fell below 20% 2062 | -8/Materials | Destroyed by G-47 Trooper with Particle Gun Last Messages --------------- 01872_ R-06 Scavenger collects Lgt. Ion Engine. 01878_ U-05 Engineer builds a Wall. 01885_ Katana destroyed. 01888_ Sml. Laser destroyed. 01889_ Lgt. Ion Engine destroyed. 01890_ L-31 Rogue destroyed. 01897_ Assault Rifle destroyed. 01897_ R-06 Scavenger collects Lgt. Cannon. 01903_ Slammed into W-25 Informer. 01910_ Acquired Imp. Aluminum Leg. 01914_ Slammed into W-25 Informer. 01917_ Aluminum Leg destroyed. 01923_ Lgt. Ion Engine destroyed. 01938_ Aluminum Leg destroyed. 01939_ Acquired Arm. Wheel. 01957_ Aluminum Leg destroyed. 02008_ Slammed into A-02 Transporter. 02043_ K-01 Serf collects debris. 02052_ Arm. Wheel destroyed. 02060_ Slammed into S-10 Pest. Map ----- +----------------------------------------------------+ | ?????????????????????????????????????????????????? | | ?????????????????????????????????????????????????? | | ?????????????????????????????????????????????????? | | ?????????????????????????????????????????????????? | | ?????????????????????????????????????????????????? | | ?????????????????????????????????????????????????? | | ?????????????????????????????????????????????????? | | ?????????????????????????????????????????????????? | | ?????????????????????????????????????????????????? | | ?????????????????????????????????????????????????? | | ?????????????????????????????????????????????????? | | ?????????????????????????????????????????????????? | | ?????????????????????????????????????????????????? | | ??????????????????????#####??????????????????????? | | ???????####???????????# #??????????????????????? | | ???????# ???????????+ +??????????????????????? | | ???????# ??????????# #??????????????????????? | | ???????+ ??????????# #??????????????????????? | | ???????# ??????????# #??????????????????????? | | ???????? ??????????# #??????????????????????? | | ????????? ?????????## ##?????????????????????? | | ###########+########## ! #############?????????? | | ??????????? | | ! T ??????????? | | YYY kg Ys ????????????? | | ##########+######+### @ ###???????????????????? | | #??????? ??# ###+#######?????????????????? | | #??????# """ ## # #?????????????????? | | #??????# """ ## # ! #?????????????????? | | #??????# """ ## # """ #?????????????????? | | #??????# ## # """ #?????????????????? | | #??????# ## # !!! """ #?????????????????? | | #??????######### # !!! """ #?????????????????? | | #??????????????# # !! """ ??????????????????? | | #??????????????# # ????????????????????? | | ##?????????????#############????????????????????? | | ??????????????????????????????????????????? | | ??????????????????????????????????????????? | | ??????????????????????????????????????????? | | #???????????????????????????????????????????? | | !#???????????????????????????????????????????? | | !#???????????????????????????????????????????? | | !!!!##???????????????????????????????????????????? | | #####????????????????????????????????????????????? | | ?????????????????????????????????????????????????? | | ?????????????????????????????????????????????????? | | ?????????????????????????????????????????????????? | | ?????????????????????????????????????????????????? | | ?????????????????????????????????????????????????? | | | +----------------------------------------------------+ Best States ------------- Heat Dissipation 31 Energy Generation 17 Energy Capacity 290 Matter Stores 300 Matter Capacity 300 Sight Range 16 Terrain Scan Density 10 ECM Strength 1 Armor Coverage 150 Evasion (%) 40 Recoil Reduction 2 Item Schematics ----------------- None Robot Schematics ------------------ None Fabricated ------------ Nothing Alien Tech Used ----------------- None Achievements -------------- None Challenges ------------ None Game ------ Seed CombatRemoteDoublenader Manual? 0 Play Time 00:23:10 Cumulative 60.4 hours Start 2020.03.03 @ 20:42:42 End 2020.03.03 @ 21:04:50 Sessions 1 Manual Loads 0 Difficulty Rogue Special Mode None Game No. 70 Rogue 70 Adventurer 0 Explorer 0 Win Type - Total 0 Types 0/0/0/0/0/0/0 Lore% 31 Gallery% 41 Achievement% 27 Wizard Run 0 Options --------- ASCII 0 Keyboard 0 Movement Mouse Keybinds 0 Fullscreen 1 Font 20/SmallcapsGlow Map View 66x50 Tactical HUD 1 Map Filters NONE Filters NONE Steam 1 RUN: 05d68ae7-7c6a-4ef8-b439-7f7b7667ca62